bitfinex/quotes_ETHUSD_20240717
["timestamp","ask_amount","ask_price","bid_price","bid_amount"]
[1721215690783,2.3709,3466.0,3465.3,3.10759878]
[1721215690981,2.3709,3466.0,3465.4,3.79679891]
[1721215691187,2.3709,3466.0,3465.5,2.50840452]
[1721215691483,0.02703754,3465.9,3465.4,0.68920013]
[1721215691690,0.02703754,3465.9,3465.1,0.59899501]
[1721215691986,2.88537,3465.8,3465.2,2.50847312]
[1721215692190,0.55,3465.7,3465.1,0.59899501]
[1721215692483,0.57698445,3465.7,3465.2,2.5085397]
[1721215692683,0.57698445,3465.7,3465.2,0.40060272]
[1721215692917,0.57698445,3465.7,3465.0,0.59899501]
[1721215693083,2.4544,3465.6,3465.1,1.00344239]
[1721215693284,2.4544,3465.6,3464.7,0.99964404]
[1721215693482,2.3121,3465.2,3464.7,0.40064903]
[1721215693711,2.88605,3465.0,3464.5,7.44]
[1721215693907,2.88605,3465.0,3464.6,1.00366111]
[1721215694138,2.9117459,3464.9,3464.5,7.44]
[1721215694423,2.9117459,3464.9,3464.3,0.59899501]
[1721215694579,2.9117459,3464.9,3464.4,2.50907473]
[1721215694779,2.9117459,3464.9,3464.4,0.40065623]
[1721215695019,2.9117459,3464.9,3464.2,0.59899501]
[1721215695485,2.9117459,3464.9,3464.1,3.0]
[1721215695486,2.4925,3464.8,3464.3,2.50907773]
[1721215695806,2.4925,3464.8,3464.0,7.44]
[1721215695807,2.91209696,3464.7,3464.0,7.44]
[1721215696021,2.4925,3464.6,3464.0,7.44]
[1721215696180,3.43642,3464.5,3464.0,7.44]
[1721215696376,2.8866,3464.3,3464.0,7.44]
[1721215696620,0.02515867,3464.2,3464.0,9.422]
[1721215696780,2.8865,3464.4,3464.0,1.982]
[1721215696986,2.8865,3464.4,3463.5,2.10465685]
[1721215696987,0.57493535,3464.3,3463.5,2.10465685]
[1721215697294,0.57493535,3464.3,3463.6,2.50943311]
[1721215697491,0.02493535,3464.3,3463.5,2.88724]
[1721215697729,0.02493535,3464.3,3463.7,2.88703]
[1721215697931,2.4925,3464.6,3463.8,3.94526103]
[1721215699238,2.4925,3464.6,3463.8,1.05826103]
[1721215699445,2.4925,3464.6,3463.7,2.88707]
[1721215700284,2.4925,3464.6,3463.8,2.88698]
[1721215701360,0.03330643,3464.5,3463.8,2.88698]
[1721215701524,0.03330643,3464.5,3463.9,2.88691]
[1721215703207,0.03330643,3464.5,3464.2,2.88665]
[1721215703438,0.03330643,3464.5,3464.3,0.288665]
[1721215703618,1e-08,3464.5,3464.4,2.8865]
[1721215703818,2.427,3465.0,3464.2,0.30014193]
[1721215704069,2.427,3465.0,3464.5,2.88638]
[1721215705438,0.02101067,3464.9,3464.5,2.88638]
[1721215705645,0.02101067,3464.9,3464.3,2.8865]
[1721215705866,0.02101067,3464.9,3464.4,0.60733819]
[1721215706027,0.02101067,3464.9,3463.9,2.88688]
[1721215706028,0.57101067,3464.9,3463.9,2.88688]
[1721215706233,0.57101067,3464.9,3463.8,2.88695]
[1721215706234,7.80196,3464.8,3463.8,2.88695]
[1721215706569,0.55,3464.7,3463.9,3.18710402]
[1721215706878,0.02028867,3464.6,3463.9,3.18710402]
[1721215707033,0.02028867,3464.6,3464.0,0.6074054]
[1721215707676,0.02028867,3464.6,3463.9,0.30020766]
[1721215708916,0.02028867,3464.6,3463.8,2.88697]
[1721215709203,0.02028867,3464.6,3463.9,0.30021056]
[1721215711276,0.02028867,3464.6,3463.9,3.18711056]
[1721215712482,0.02028867,3464.6,3464.0,4.7]
[1721215712704,2.4954,3465.1,3464.5,2.88641]
[1721215713610,0.03157587,3465.0,3464.5,2.88641]
[1721215713772,0.03157587,3465.0,3464.3,2.88657]
[1721215713773,0.03157587,3465.0,3464.3,2.88651]
[1721215713973,0.58157587,3465.0,3464.1,3.38673106]
[1721215714193,0.56103816,3465.0,3464.3,2.88658]
[1721215714506,0.03161,3464.9,3464.3,2.88658]
[1721215714712,0.03161,3464.9,3464.2,1.62314156]
[1721215715068,2.4954,3464.8,3464.2,1.62314156]
[1721215715279,0.55,3464.7,3464.1,0.50002106]
[1721215716570,0.02128809,3464.6,3464.1,0.50002106]
[1721215717285,2.5060575,3464.8,3464.3,2.88652]
[1721215717509,2.4954,3464.8,3464.3,2.88652]
[1721215717683,2.3913,3465.5,3464.5,2.88641]
[1721215717869,2.3913,3465.5,3464.6,0.577293]
[1721215717870,0.01110467,3464.7,3464.6,0.577293]
[1721215718105,2.88554,3465.6,3464.6,0.577293]
[1721215718106,4.8373,3465.3,3464.6,0.577293]
[1721215718265,0.01073457,3464.7,3464.1,3.38674106]
[1721215718466,2.3913,3464.7,3464.1,0.50002106]
[1721215718718,0.01080549,3464.6,3464.1,0.50002106]
[1721215719077,2.3913,3464.7,3464.1,0.50002106]
[1721215719400,0.01130504,3464.6,3464.1,0.50002106]
[1721215719570,2.3913,3464.7,3464.2,1.11271109]
[1721215719770,0.01130504,3464.6,3464.1,0.50002106]
[1721215719974,2.3913,3464.7,3464.1,0.50002106]
[1721215720293,0.01130504,3464.6,3464.1,0.50002106]
[1721215720497,2.3913,3464.7,3464.1,3.38676106]
[1721215721499,2.408,3465.2,3464.4,2.8865]
[1721215721677,0.01109939,3464.6,3464.5,0.28865]
[1721215721876,2.408,3465.2,3464.5,0.28865]
[1721215722112,0.01114052,3464.6,3464.5,0.28865]
[1721215722407,2.408,3465.2,3464.5,0.28865]
[1721215722609,2.408,3465.2,3464.5,3.17505]
[1721215722809,0.01115392,3464.6,3464.5,3.17505]
[1721215723022,2.408,3465.2,3464.6,2.88631]
[1721215725410,2.408,3465.2,3464.5,0.28865]
[1721215725611,2.408,3465.2,3464.3,2.88657]
[1721215725776,2.408,3465.2,3464.4,3.89001258]
[1721215726110,5.29384,3465.2,3464.1,3.98572607]
[1721215726312,3.43596,3465.1,3464.2,5.50895726]
[1721215726478,3.43596,3465.1,3464.2,3.0]
[1721215726678,3.43596,3465.1,3464.3,1.73123961]
[1721215727182,0.55,3465.1,3464.3,1.73123961]
[1721215727621,0.55,3465.1,3464.4,1.00356799]
[1721215727817,0.55,3465.1,3464.3,1.73123961]
[1721215728023,2.408,3465.2,3464.4,1.0035673]
[1721215728328,2.408,3465.2,3464.5,4.52327278]
[1721215728628,2.408,3465.2,3464.6,3.88984259]
[1721215728924,2.408,3465.2,3464.6,2.88632]
[1721215729228,0.01127531,3465.1,3464.6,2.88632]
[1721215729392,2.441,3465.0,3464.7,1.00348806]
[1721215729726,5.32705,3465.0,3464.3,1.73123961]
[1721215729921,0.55,3464.9,3464.4,0.22312607]
[1721215730124,0.56093583,3464.9,3464.4,0.22312607]
[1721215730441,3.44701583,3464.9,3464.4,0.22312607]
[1721215731024,5.33225,3464.7,3464.1,0.50002106]
[1721215731201,2.441,3464.6,3464.1,0.50002106]
[1721215731624,0.01124383,3464.5,3463.7,3.48603501]
[1721215731938,5.32734,3464.6,3463.8,2.50928235]
[1721215732242,0.01124383,3464.5,3463.9,2.50928526]
[1721215732439,0.01124383,3464.5,3463.7,3.48603501]
[1721215732754,0.01124383,3464.5,3463.8,5.39618886]
[1721215732900,0.01124383,3464.5,3463.9,4.43202799]
[1721215733245,0.01124383,3464.5,3464.0,1.00368754]
[1721215733454,0.01124383,3464.5,3463.6,10.92608501]
[1721215733755,0.01124383,3464.5,3463.7,2.5092477]
[1721215733950,2.89767383,3464.5,3463.8,1.00374671]
[1721215734244,2.89767383,3464.5,3463.8,0.90427417]
[1721215734713,2.4363,3464.4,3463.6,7.44]
[1721215734913,2.4363,3464.4,3463.7,2.5094045]
[1721215734914,2.44751346,3464.4,3463.7,2.5094045]
[1721215735138,2.44751346,3464.4,3463.6,7.44]
[1721215735352,2.88668,3464.2,3463.7,2.5094643]
[1721215735570,2.88668,3464.2,3463.4,0.59899501]
[1721215735856,0.01144451,3464.1,3463.5,4.78375983]
[1721215736000,0.01144451,3464.1,3463.6,2.50951773]
[1721215736200,2.88668,3464.2,3463.7,1.00380709]
[1721215736438,2.88684,3464.0,3463.5,1.67524709]
[1721215736746,2.88684,3464.0,3463.6,2.50961079]
[1721215736944,0.01158621,3463.9,3463.6,1.3610026]
[1721215737147,2.4654,3463.8,3463.5,1.67524709]
[1721215737329,2.4654,3463.8,3463.6,1.00384006]
[1721215737640,2.4654,3463.8,3463.5,1.67524709]
[1721215737826,2.4654,3463.8,3463.6,2.50956676]
[1721215738044,2.4654,3463.8,3463.5,1.67524709]
[1721215738238,2.88685,3464.0,3463.6,3.31960335]
[1721215738466,0.01158621,3463.9,3463.6,0.81003862]
[1721215739214,0.01158621,3463.9,3463.7,1.00382407]
[1721215739534,2.4654,3464.2,3463.6,0.81003862]
[1721215739723,0.01166325,3463.8,3463.7,2.5095]
[1721215740052,2.4654,3464.2,3463.7,1.94175532]
[1721215740249,2.4654,3464.2,3463.7,0.93795532]
[1721215740441,0.01170439,3463.8,3463.7,0.93795532]
[1721215740622,0.01147329,3464.1,3463.7,0.93795532]
[1721215741615,5.35208,3464.2,3463.7,0.93795532]
[1721215741817,2.4654,3464.2,3463.8,0.26132024]
[1721215742063,2.446,3464.7,3463.8,0.26132024]
[1721215742064,0.01063329,3464.1,3463.8,0.26132024]
[1721215742268,2.3516,3464.0,3463.8,0.26132024]
[1721215742560,2.3623926,3464.0,3463.8,0.26132024]
[1721215743493,0.0107926,3464.0,3463.8,0.26132024]
[1721215743706,2.3883,3464.4,3463.8,0.26132024]
[1721215743858,0.01099306,3463.9,3463.8,0.26132024]
[1721215744064,2.3883,3464.4,3463.8,0.26132024]
[1721215744264,0.0110342,3463.9,3463.8,0.26132024]
[1721215744458,2.3883,3464.4,3463.8,0.26132024]
[1721215744660,0.01096836,3463.9,3463.8,0.26132024]
[1721215744864,2.3883,3464.4,3463.8,0.26132024]
[1721215745503,0.01113328,3464.3,3463.8,0.26132024]
[1721215746895,0.01113328,3464.3,3463.9,0.31483902]
[1721215747771,0.01113328,3464.3,3464.0,1.00367303]
[1721215747977,0.01113328,3464.3,3464.2,2.88666]
[1721215748204,2.333,3465.1,3464.2,2.88666]
[1721215748205,2.333,3465.1,3464.3,2.88654]
[1721215748409,2.333,3465.1,3464.4,1.00357367]
[1721215748716,2.333,3465.1,3464.5,5.78424849]
[1721215748717,0.00877347,3465.0,3464.5,5.78424849]
[1721215748893,0.00877347,3465.0,3464.6,1.00355817]
[1721215749097,0.00877347,3465.0,3464.5,3.27536137]
[1721215749292,0.00877347,3465.0,3464.6,1.06122621]
[1721215749497,2.2546,3465.5,3464.7,0.49355726]
[1721215749698,0.00807492,3464.9,3464.7,0.49355726]
[1721215749905,2.2546,3465.5,3464.8,0.05771586]
[1721215750286,2.2546,3465.5,3464.7,3.37978726]
[1721215750680,2.2546,3465.5,3464.8,0.05771421]
[1721215750916,2.88503,3466.2,3464.9,3.28754436]
[1721215751126,0.142,3466.9,3465.2,2.88582]
[1721215751127,2.4463,3466.1,3465.2,2.88582]
[1721215751326,2.4463,3466.7,3465.4,2.88566]
[1721215751584,2.4463,3466.7,3465.6,2.88544]
[1721215751585,5.33089,3466.7,3465.6,2.88544]
[1721215751897,5.33089,3466.7,3465.7,2.50813707]
[1721215752098,5.33089,3466.7,3465.7,2.88541]
[1721215753054,5.33089,3466.7,3465.5,0.56466148]
[1721215753055,2.2986,3466.5,3465.5,0.56466148]
[1721215753266,0.142,3466.9,3464.8,3.59899501]
[1721215753267,2.446,3465.8,3464.8,3.59899501]
[1721215753546,2.446,3465.8,3464.7,3.37973726]
[1721215753703,2.446,3465.8,3464.8,5.5084568]
[1721215753704,5.33134,3465.8,3464.8,5.5084568]
[1721215754065,0.55,3465.7,3464.7,0.49355726]
[1721215754360,3.43542,3465.7,3464.8,2.88616]
[1721215754556,2.8855,3465.6,3464.7,0.49355726]
[1721215754756,2.4785,3465.5,3464.3,5.76651]
[1721215754901,2.4785,3465.5,3464.4,2.50874015]
[1721215755108,2.4785,3465.5,3464.3,5.76651]
[1721215755341,2.4785,3465.5,3464.5,2.88633]
[1721215755956,2.446,3465.0,3464.0,1.50546345]
[1721215756106,2.446,3465.0,3463.8,0.71754501]
[1721215756107,2.88617,3464.8,3463.9,1.50546413]
[1721215756306,2.2766,3464.9,3463.8,2.88694]
[1721215756505,2.2766,3464.9,3464.2,2.88665]
[1721215757050,2.88575,3465.3,3464.3,2.88657]
[1721215757051,2.2766,3465.3,3464.3,2.88657]
[1721215757341,2.2766,3465.3,3464.4,0.43919341]
[1721215759044,2.2766,3465.3,3464.6,2.88633]
[1721215759245,2.3649,3465.7,3464.9,2.88608]
[1721215759838,2.3649,3465.7,3464.5,1.50509605]
[1721215760052,2.88564,3465.5,3464.6,0.54298045]
[1721215760207,5.33164,3465.5,3464.6,0.54298045]
[1721215761043,2.3649,3465.7,3464.6,3.42931045]
[1721215761354,3.0,3466.5,3464.7,2.2993]
[1721215761355,2.88514,3466.1,3464.7,2.2993]
[1721215761533,5.25567,3466.2,3464.6,0.54298045]
[1721215761534,2.88522,3466.0,3464.8,3.32085718]
[1721215761725,2.88527,3465.9,3464.8,3.32085718]
[1721215762041,2.88527,3465.9,3464.9,2.88603]
[1721215762344,2.88527,3465.9,3465.0,0.33207772]
[1721215763071,2.88557,3465.6,3464.6,3.42928045]
[1721215763208,2.88559,3465.5,3464.6,0.54298045]
[1721215763614,2.88559,3465.5,3464.6,3.42931045]
[1721215763844,2.88559,3465.5,3464.6,0.54298045]
[1721215764059,5.38556,3465.3,3464.3,2.88652]
[1721215764406,0.0068945,3465.2,3464.5,2.88641]
[1721215764839,0.0068945,3465.2,3464.6,2.88628]
[1721215765044,0.0068945,3465.2,3464.7,2.88621]
[1721215765225,2.446,3465.8,3464.9,2.88603]
[1721215765226,2.4998,3465.7,3464.9,2.88603]
[1721215765453,2.4998,3465.7,3465.0,3.32509956]
[1721215765627,0.00681994,3465.6,3465.0,3.32509956]
[1721215767817,0.00681994,3465.6,3465.2,2.88575]
[1721215768185,2.4763,3466.1,3465.3,2.88572]
[1721215768559,2.4763,3466.1,3465.1,1.7]
[1721215768560,0.00651919,3466.0,3465.1,2.88586]
[1721215768887,2.89168919,3466.0,3465.2,0.62109296]
[1721215771159,0.00651919,3466.0,3465.2,0.62109296]
[1721215771372,0.55651919,3466.0,3465.2,0.62109296]
[1721215771542,3.44172919,3466.0,3465.2,0.62109296]
[1721215771745,3.44172919,3466.0,3464.8,1.50502287]
[1721215771746,2.4861,3465.1,3464.6,1.50502287]
[1721215772067,2.4861,3465.1,3464.5,8.03899501]
[1721215772068,2.446,3464.7,3464.5,7.44]
[1721215772254,2.446,3464.7,3463.9,7.44]
[1721215772255,2.4236,3464.5,3463.9,7.44]
[1721215772452,0.00775079,3464.4,3463.9,7.44]
[1721215773285,0.00775079,3464.4,3463.9,8.764716]
[1721215774170,2.4236,3464.5,3463.9,8.764716]
[1721215774542,0.00772925,3464.4,3463.9,8.764716]
[1721215774969,0.00772925,3464.4,3464.0,2.8868]
[1721215775174,5.30961,3465.0,3464.0,2.8868]
[1721215775355,0.0078278,3464.3,3464.1,1.6238426]
[1721215775555,2.4236,3465.0,3464.1,1.6238426]
[1721215775781,0.00790482,3464.2,3464.1,4.5105726]
[1721215775983,5.4236,3465.0,3464.1,4.5105726]
[1721215776213,8.3096,3465.0,3464.2,1.61621986]
[1721215776367,8.3096,3465.0,3464.1,2.88673]
[1721215776368,5.4236,3465.0,3464.1,2.88673]
[1721215776590,2.4236,3465.0,3464.3,2.88652]
[1721215777208,2.4236,3465.0,3464.2,4.58666]
[1721215777595,2.4236,3465.0,3464.3,2.88651]
[1721215777762,2.4236,3465.0,3464.4,0.747317]
[1721215778214,2.4236,3465.0,3464.1,2.88668]
[1721215778507,2.4236,3465.0,3463.9,4.211586]
[1721215778508,2.88609,3464.9,3463.9,4.211586]
[1721215779003,2.88626,3464.7,3463.9,1.324716]
[1721215779208,2.88626,3464.7,3463.9,4.324716]
[1721215779441,2.88626,3464.7,3464.0,1.33184946]
[1721215779442,2.89395352,3464.6,3464.0,1.33184946]
[1721215780307,5.31952,3464.5,3463.9,1.324716]
[1721215780472,5.32718864,3464.5,3463.7,2.92]
[1721215781306,2.88652,3464.4,3463.4,1.50563131]
[1721215781606,2.88659,3464.3,3463.4,3.0]
[1721215781809,2.88659,3464.3,3463.5,1.65330213]
[1721215782024,0.0078986,3464.2,3463.5,1.65330213]
[1721215782807,2.88659,3464.3,3463.5,1.65330213]
[1721215782808,2.88676,3464.1,3463.5,1.65330213]
[1721215783166,0.00805265,3464.0,3463.5,1.65330213]
[1721215783373,0.00805265,3464.0,3463.6,0.78405066]
[1721215784263,0.01949624,3463.9,3463.6,0.78405066]
[1721215784965,2.88655,3464.4,3463.6,0.78405066]
[1721215785192,0.00820672,3463.8,3463.6,0.78405066]
[1721215785397,2.88655,3464.4,3463.6,0.78405066]
[1721215785604,2.88655,3464.4,3463.7,0.83246028]
[1721215787172,2.4331,3464.5,3463.7,0.83246028]
[1721215787386,2.88653,3464.4,3463.7,0.83246028]
[1721215787796,0.02003099,3464.3,3463.7,0.83246028]
[1721215787997,0.02003099,3464.3,3463.6,0.78405066]
[1721215787998,2.90662099,3464.3,3463.6,0.78405066]
[1721215788229,2.8868,3464.1,3463.5,1.65330213]
[1721215788408,2.4097,3464.0,3463.5,1.65330213]
[1721215790733,2.37463099,3464.3,3463.5,4.54053213]
[1721215790883,2.37463099,3464.3,3463.6,0.45405321]
[1721215791475,2.37463099,3464.3,3463.6,3.34116321]
[1721215791676,2.37463099,3464.3,3463.7,2.88706]
[1721215791879,2.37463099,3464.3,3463.6,0.45405321]
[1721215792180,2.37463099,3464.3,3463.6,3.34121321]
[1721215792515,2.37463099,3464.3,3463.7,3.67522853]
[1721215793014,5.34445,3464.7,3463.7,3.67522853]
[1721215793395,0.02814639,3464.6,3463.7,3.67522853]
[1721215793780,0.02814639,3464.6,3463.7,0.78816853]
[1721215794122,0.02814639,3464.6,3464.1,2.88673]
[1721215794277,0.02814639,3464.6,3464.2,0.577358]
[1721215794693,0.02814639,3464.6,3464.3,2.8865]
[1721215794996,0.02814639,3464.6,3464.3,5.773]
[1721215795301,2.4273,3465.1,3464.4,2.88648]
[1721215795504,0.00711197,3465.0,3464.4,2.88648]
[1721215795703,0.00711197,3465.0,3464.5,0.8050338]
[1721215798308,0.00711197,3465.0,3464.5,3.6914438]
[1721215798709,0.02107555,3464.9,3464.5,3.6914438]
[1721215799521,0.02107555,3464.9,3464.5,0.8050338]
[1721215799727,0.02107555,3464.9,3464.2,0.577358]
[1721215799930,2.88625,3464.7,3464.2,0.577358]
[1721215800137,2.89315197,3465.0,3464.0,7.44]
[1721215800138,2.4351,3464.8,3464.0,7.44]
[1721215800320,2.4351,3464.8,3464.0,10.32683]
[1721215800522,5.32127,3464.8,3464.1,1.00361575]
[1721215800836,2.4351,3464.8,3464.1,2.88674]
[1721215801032,2.4351,3464.8,3464.2,1.321361]
[1721215802300,2.4351,3464.8,3464.0,7.44]
[1721215802503,5.32128,3464.8,3464.0,7.44]
[1721215802698,5.32128,3464.8,3464.0,10.32683]
[1721215802924,2.4351,3464.8,3464.1,2.88675]
[1721215804002,2.4351,3464.8,3464.1,5.77344]
[1721215804194,2.4351,3464.8,3464.2,1.321344]
[1721215806299,2.4351,3464.8,3464.2,4.208004]
[1721215807138,2.4351,3464.8,3464.2,1.321344]
[1721215810316,2.4351,3464.8,3464.0,7.44]
[1721215810712,2.4351,3464.8,3464.0,10.32678]
[1721215811832,2.4351,3464.8,3464.0,2.88678]
[1721215812025,2.4351,3464.8,3464.1,2.88674]
[1721215812632,2.4351,3464.8,3464.3,2.88656]
[1721215812810,2.4351,3464.8,3464.4,0.57733]
[1721215813013,2.4351,3464.8,3464.1,2.8867]
[1721215813276,2.4351,3464.8,3464.1,2.88668]
[1721215813870,2.4351,3464.8,3463.8,1.7]
[1721215813871,2.88625,3464.7,3463.8,1.7]
[1721215814021,2.88625,3464.7,3463.9,1.00372628]
[1721215814218,2.88625,3464.7,3464.0,1.29779298]
[1721215814423,5.32133,3464.8,3464.0,1.29779298]
[1721215814623,8.20757,3464.8,3464.0,1.29779298]
[1721215815322,2.88571,3465.4,3463.8,2.29899501]
[1721215815323,2.3018,3464.4,3463.8,2.29899501]
[1721215815516,2.3018,3464.4,3463.8,1.7]
[1721215816259,2.3018,3464.4,3463.9,1.00375603]
[1721215816450,2.3018,3464.4,3464.0,1.00370603]
[1721215816647,2.3018,3464.4,3463.8,1.7]
[1721215816960,2.3018,3464.4,3463.9,3.94060632]
[1721215817125,2.3018,3464.4,3464.0,1.00373388]
[1721215817326,2.3018,3464.4,3463.9,1.43127161]
[1721215817625,0.02814539,3464.3,3464.0,2.50929486]
[1721215817854,0.02814539,3464.3,3464.1,1.00371296]
[1721215818059,0.02814539,3464.3,3463.9,1.43127161]
[1721215818287,0.02814539,3464.3,3464.0,3.33966917]
[1721215818458,0.02814539,3464.3,3464.0,0.83039877]
[1721215818649,2.3018,3464.4,3463.9,1.43127161]
[1721215818820,2.3018,3464.4,3464.0,1.00373828]
[1721215818821,0.02811351,3464.2,3464.0,1.00373828]
[1721215819025,2.3018,3464.4,3463.8,1.7]
[1721215819224,0.02805686,3464.1,3463.9,2.50935918]
[1721215819529,0.02800021,3464.0,3463.8,1.7]
[1721215819729,5.18837,3464.4,3463.8,1.7]
[1721215819929,2.91476016,3464.3,3463.6,8.03899501]
[1721215820147,2.88667,3464.2,3463.7,2.5095262]
[1721215820340,2.88667,3464.2,3463.6,7.44]
[1721215820341,2.89415756,3464.2,3463.6,7.44]
[1721215820630,2.88667,3464.2,3463.7,2.50952598]
[1721215820857,0.02048363,3464.1,3463.8,1.00381039]
[1721215821163,0.02048363,3464.1,3463.6,1.78147876]
[1721215821338,2.88667,3464.2,3463.7,2.50947143]
[1721215821539,2.88667,3464.2,3463.6,1.78147876]
[1721215821540,0.02052169,3464.0,3463.8,1.00378857]
[1721215821866,5.18837,3464.4,3463.9,0.27852673]
[1721215822032,2.886,3465.0,3464.0,4.45012784]
[1721215822229,2.886,3465.0,3464.1,2.50930008]
[1721215822427,2.886,3465.0,3464.2,2.50930008]
[1721215822653,2.886,3465.0,3464.3,0.59951151]
[1721215822924,5.26556,3465.1,3464.3,0.59951151]
[1721215823133,5.26556,3465.1,3464.4,2.50901942]
[1721215823134,2.3796,3465.1,3464.4,2.50901942]
[1721215823459,2.3796,3465.1,3464.5,1.00363526]
[1721215823660,2.3796,3465.1,3464.6,0.50886618]
[1721215824026,2.88606,3465.0,3464.3,1.19850652]
[1721215824278,2.3796,3465.1,3464.3,1.19850652]
[1721215824279,2.88622,3464.8,3464.3,0.59951151]
[1721215824799,2.88626,3464.7,3464.3,0.59951151]
[1721215824946,0.02045447,3464.7,3464.1,0.59899501]
[1721215825153,2.3139,3464.6,3464.2,1.00367127]
[1721215825387,5.22181185,3464.6,3463.9,7.44]
[1721215825590,2.88657,3464.4,3463.9,7.44]
[1721215825810,2.88658,3464.3,3463.6,0.59899501]
[1721215826084,2.88658,3464.3,3463.7,3.10842363]
[1721215826085,2.90773541,3464.3,3463.7,3.10842363]
[1721215826292,2.90773541,3464.3,3463.8,2.50942862]
[1721215826293,0.02115541,3464.3,3463.8,2.50942862]
[1721215826452,0.02115541,3464.3,3463.9,1.00377145]
[1721215826792,0.02092723,3464.2,3463.7,0.59899501]
[1721215826979,2.8865,3464.4,3463.8,2.50943975]
[1721215827162,0.02079358,3464.1,3463.9,1.0037759]
[1721215827363,2.3139,3464.6,3464.0,2.50932347]
[1721215827567,2.3139,3464.6,3463.8,2.46264001]
[1721215827866,5.20026,3464.6,3463.9,0.59899501]
[1721215828061,5.20026,3464.6,3464.0,2.50925221]
[1721215828259,5.20026,3464.6,3463.8,2.46264001]
[1721215828489,5.20026,3464.6,3463.9,3.85306206]
[1721215828676,2.88651,3464.4,3463.7,0.59899501]
[1721215828872,2.88651,3464.4,3463.8,2.50949623]
[1721215829190,2.88651,3464.4,3463.6,3.59899501]
[1721215829191,0.02042996,3464.3,3463.9,2.50946818]
[1721215829499,0.02042996,3464.3,3463.6,3.59899501]
[1721215829667,0.02042996,3464.3,3463.7,2.50950895]
[1721215829868,2.88668,3464.2,3463.8,2.50950895]
[1721215830163,2.88668,3464.2,3463.3,1.19799003]
[1721215830164,2.8869,3464.0,3463.3,0.59899501]
[1721215830394,2.88699,3463.9,3463.4,1.00390396]
[1721215830556,2.88699,3463.9,3463.2,7.44]
[1721215830557,2.90702063,3463.9,3463.2,7.44]
[1721215830887,2.88702,3463.8,3463.3,1.0039371]
[1721215831087,2.88702,3463.8,3463.1,0.59899501]
[1721215831292,0.01976324,3463.7,3463.2,2.50982123]
[1721215831452,0.01976324,3463.7,3463.3,1.00392849]
[1721215831652,2.88702,3463.8,3463.1,1.90131477]
[1721215831880,0.01962953,3463.6,3463.2,2.50983552]
[1721215832078,0.01976324,3463.7,3463.3,1.00393421]
[1721215832402,2.88702,3463.8,3463.1,1.30231976]
[1721215832593,2.88702,3463.8,3463.2,2.50984995]
[1721215832887,2.88702,3463.8,3463.1,1.30231976]
[1721215833196,2.88702,3463.8,3463.2,1.00393841]
[1721215833354,2.88702,3463.8,3463.1,1.30231976]
[1721215833554,2.88702,3463.8,3463.2,1.00393847]
[1721215833755,2.88702,3463.8,3463.1,1.30231976]
[1721215833955,2.88702,3463.8,3463.2,1.00393867]
[1721215834170,2.88702,3463.8,3463.1,1.30231976]
[1721215834406,2.88702,3463.8,3463.2,1.00393615]
[1721215834689,2.88702,3463.8,3463.1,1.30231976]
[1721215834852,2.88702,3463.8,3463.0,3.59899501]
[1721215834853,2.4242,3463.5,3462.8,8.03899501]
[1721215835049,2.4242,3463.5,3462.8,7.44]
[1721215835050,2.88747,3463.3,3462.8,7.44]
[1721215835657,2.88753,3463.2,3462.8,7.44]
[1721215835860,2.88753,3463.2,3462.5,0.1501323]
[1721215836063,2.8876,3463.1,3462.5,0.1501323]
[1721215836270,2.4515,3462.9,3462.5,0.1501323]
[1721215837115,2.888,3462.6,3462.5,0.1501323]
[1721215837680,5.776,3462.6,3462.5,0.1501323]
[1721215837978,8.6718,3462.6,3462.5,0.1501323]
[1721215840280,5.2338,3462.6,3462.5,0.1501323]
[1721215840793,9.178572,3462.6,3462.5,0.1501323]
[1721215841002,9.870572,3462.6,3462.5,0.1501323]
[1721215842725,2.376,3461.8,3461.7,7.44]
[1721215842876,2.889,3461.4,3461.1,7.44]
[1721215843079,2.88908,3461.3,3461.1,7.44]
[1721215843270,2.88917,3461.2,3461.1,7.44]
[1721215845002,5.33502,3461.4,3461.1,7.44]
[1721215845305,2.376,3461.8,3461.1,8.1848]
[1721215845423,2.2795,3462.2,3461.1,8.1848]
[1721215845772,2.2795,3462.2,3461.2,2.8891]
[1721215846046,0.142,3462.6,3461.3,3.0]
[1721215846345,0.142,3462.6,3461.6,2.88882]
[1721215846551,2.8881,3462.5,3461.4,3.18895]
[1721215846765,2.8881,3462.5,3461.5,2.8889]
[1721215846910,2.8881,3462.5,3461.6,2.88883]
[1721215847123,2.8881,3462.5,3461.7,0.607773]
[1721215847927,0.142,3462.6,3461.7,0.607773]
[1721215847928,3.03,3462.6,3461.7,0.607773]
[1721215848627,0.142,3462.6,3461.7,3.496503]
[1721215848828,3.03005,3462.6,3461.7,3.496503]
[1721215849044,3.03005,3462.6,3461.7,0.607773]
[1721215849045,2.88809,3462.5,3461.7,0.607773]
[1721215850466,2.88809,3462.5,3461.4,0.3]
[1721215850467,2.88832,3462.3,3461.4,0.3]
[1721215850782,2.8885,3462.0,3461.3,7.44]
[1721215850926,2.88874,3461.8,3461.3,7.44]
[1721215851133,2.88874,3461.8,3460.9,10.33742]
[1721215851828,2.408,3461.9,3460.9,10.33742]
[1721215852078,2.88872,3461.8,3461.0,1.322691]
[1721215852227,2.88858,3461.9,3461.0,1.322691]
[1721215852589,2.88843,3462.1,3461.2,2.88916]
[1721215852728,2.446,3462.2,3461.3,2.889]
[1721215853136,2.446,3462.2,3461.4,2.88899]
[1721215853396,2.446,3462.2,3461.4,3.466789]
[1721215853545,2.88817,3462.4,3461.4,3.466789]
[1721215853909,5.588,3462.6,3461.6,2.88878]
[1721215853910,0.142,3462.6,3461.6,2.88878]
[1721215854030,0.142,3462.6,3461.4,2.277799]
[1721215854031,0.142,3462.6,3461.9,2.88851]
[1721215854230,0.142,3462.6,3462.0,3.017517]
[1721215854474,1e-08,3462.6,3462.3,2.88825]
[1721215854831,1e-08,3462.6,3462.4,2.88815]
[1721215855030,2.389,3463.3,3462.6,2.88799]